bitfinex-derivatives/quotes_SOLF0:USTF0_20250111
["timestamp","ask_amount","ask_price","bid_price","bid_amount"]
[1736559018904,7.12078259,186.88,186.83,7.12078259]
[1736559019393,2.6766,186.84,186.83,7.12078259]
[1736559027292,7.12078259,186.88,186.73,5.44]
[1736559027490,2.6767,186.82,186.81,7.12078259]
[1736559029390,9.83842835,186.92,186.81,7.12078259]
[1736559029591,9.83842835,186.92,186.85,7.12078259]
[1736559029787,7.12078259,186.91,186.85,7.12078259]
[1736559029991,2.6761,186.87,186.85,7.12078259]
[1736559030391,7.12078259,186.91,186.85,7.12078259]
[1736559031193,7.12078259,186.89,186.81,5.44]
[1736559031396,7.12078259,186.89,186.83,7.12078259]
[1736559033094,2.6764,186.84,186.83,7.12078259]
[1736559036195,7.12078259,186.89,186.81,7.12078259]
[1736559036395,2.6766,186.83,186.81,7.12078259]
[1736559037300,2.6767,186.82,186.81,7.12078259]
[1736559039997,2.6759,186.88,186.81,7.12078259]
[1736559040199,5.77866372,186.93,186.86,7.12078259]
[1736559040395,12.89944631,186.93,186.86,7.12078259]
[1736559041298,2.6761,186.87,186.85,7.12078259]
[1736559041497,7.12078259,186.91,186.85,7.12078259]
[1736559043107,2.6761,186.86,186.85,7.12078259]
[1736559045607,2.6761,186.86,186.85,7.09399023]
[1736559046304,7.12078259,186.91,186.85,7.09399023]
[1736559046609,5.77866372,186.93,186.89,7.12078259]
[1736559046905,154.38469566,186.98,186.91,7.12078259]
[1736559047204,2.6752,186.93,186.91,7.12078259]
[1736559047809,2.6753,186.92,186.91,7.12078259]
[1736559051911,2.6752,186.93,186.91,7.12078259]
[1736559061229,83.52,187.0,186.91,7.12078259]
[1736559061421,83.52,187.0,186.96,7.12078259]
[1736559061623,83.52,187.0,186.98,7.12078259]
[1736559061823,2.6744,186.99,186.98,7.12078259]
[1736559062120,7.12078259,187.04,186.98,7.12078259]
[1736559062324,2.6738,187.03,186.98,7.12078259]
[1736559062518,7.12078259,187.04,186.98,7.12078259]
[1736559063022,2.6743,186.99,186.98,7.12078259]
[1736559065517,7.12078259,187.02,186.94,7.12078259]
[1736559065720,7.12078259,187.0,186.94,7.12078259]
[1736559066427,2.6749,186.95,186.94,7.12078259]
[1736559067225,2.6746,186.98,186.94,7.12078259]
[1736559067530,2.6746,186.98,186.96,7.12078259]
[1736559067832,7.12078259,187.02,186.96,7.12078259]
[1736559068725,3.3107,187.03,186.98,7.12078259]
[1736559069032,7.12078259,187.04,186.98,7.12078259]
[1736559072233,2.6743,186.99,186.98,7.12078259]
[1736559072434,7.12078259,187.08,186.98,7.12078259]
[1736559072731,3.2847,187.09,187.04,7.12078259]
[1736559073330,2.6734,187.05,187.04,7.12078259]
[1736559073722,8.74188259,187.1,187.04,7.12078259]
[1736559073922,61.53343381,187.12,187.06,7.12078259]
[1736559073923,2.6732,187.07,187.06,7.12078259]
[1736559074131,68.6542164,187.12,187.06,7.12078259]
[1736559074434,2.6731,187.08,187.06,7.12078259]
[1736559074627,68.6542164,187.12,187.06,7.12078259]
[1736559075027,2.6731,187.07,187.06,7.12078259]
[1736559075328,7.12078259,187.1,186.94,4.6765]
[1736559075533,2.6734,187.05,187.04,7.12078259]
[1736559076532,2.64023827,187.05,187.04,7.12078259]
[1736559077031,68.6542164,187.12,187.04,7.12078259]
[1736559077333,68.6542164,187.12,187.06,7.12078259]
[1736559078125,2.6733,187.07,187.06,7.12078259]
[1736559079725,68.6542164,187.12,187.06,7.12078259]
[1736559079929,61.53343381,187.12,187.06,7.12078259]
[1736559080325,68.6542164,187.12,187.06,7.12078259]
[1736559081128,68.6542164,187.12,187.02,4.9272]
[1736559081129,68.6542164,187.12,187.04,7.12078259]
[1736559081327,7.12078259,187.1,187.04,7.12078259]
[1736559082639,7.12078259,187.08,187.02,7.12078259]
[1736559083335,2.6737,187.03,187.02,7.12078259]
[1736559083839,7.12078259,187.04,186.98,7.12078259]
[1736559084333,2.6743,186.99,186.98,7.12078259]
[1736559088826,2.6747,186.97,186.96,7.12078259]
[1736559092336,2.6744,186.99,186.96,7.12078259]
[1736559092536,2.6744,186.99,186.98,7.12078259]
[1736559093433,7.12078259,187.04,186.98,7.12078259]
[1736559093635,3.274,187.06,187.02,7.12078259]
[1736559094646,2.6738,187.03,187.02,7.12078259]
[1736559094833,3.274,187.06,187.0,7.12078259]
[1736559096343,2.674,187.02,187.0,7.12078259]
[1736559096544,10.39478259,187.06,187.0,7.12078259]
[1736559096742,7.12078259,187.04,186.98,7.12078259]
[1736559097746,2.6738,187.03,186.98,7.12078259]
[1736559097952,7.12078259,187.04,186.98,7.12078259]
[1736559098451,2.6742,187.0,186.98,7.12078259]
[1736559099738,2.6743,186.99,186.98,7.12078259]
[1736559100953,2.6742,187.0,186.98,7.12078259]
[1736559101142,10.39478259,187.06,186.98,7.12078259]
[1736559101342,1.651,187.06,187.03,7.12078259]
[1736559101541,2.6735,187.05,187.03,7.12078259]
[1736559103052,7.12078259,187.1,187.03,7.12078259]
[1736559103252,2.6736,187.04,187.03,7.12078259]
[1736559106355,7.12078259,187.1,187.03,7.12078259]
[1736559106552,83.44,187.13,187.07,7.12078259]
[1736559108054,90.56078259,187.13,186.99,4.8201]
[1736559108254,7.12078259,187.11,187.04,7.12078259]
[1736559108652,2.6734,187.05,187.02,7.12078259]
[1736559108855,7.12078259,187.07,187.0,7.12078259]
[1736559109255,2.6734,187.05,187.0,7.12078259]
[1736559109560,7.12078259,187.07,187.0,7.12078259]
[1736559109857,2.6733,187.06,187.02,7.12078259]
[1736559110255,1.6476,187.09,187.02,7.12078259]
[1736559111060,2.6734,187.05,187.02,7.12078259]
[1736559111961,2.6734,187.05,187.04,7.12078259]
[1736559113754,2.6737,187.04,187.02,7.12078259]
[1736559115057,1.6476,187.09,187.02,7.12078259]
[1736559115258,7.12078259,187.06,186.96,5.44]
[1736559115459,7.12078259,187.06,187.0,7.12078259]
[1736559116467,2.674,187.01,187.0,7.12078259]
[1736559116764,7.12078259,187.06,186.98,7.12078259]
[1736559117165,2.6743,187.0,186.98,7.12078259]
[1736559117665,7.12078259,187.02,186.93,1.6373]
[1736559117867,7.12078259,187.02,186.95,7.12078259]
[1736559118461,2.6742,187.0,186.95,7.12078259]
[1736559118660,7.12078259,187.02,186.95,7.12078259]
[1736559119168,2.6747,186.97,186.95,7.12078259]
[1736559119360,7.12078259,187.04,186.95,7.12078259]
[1736559119559,7.12078259,187.04,186.97,7.12078259]
[1736559119964,2.6744,186.99,186.97,7.12078259]
[1736559120464,7.12078259,187.02,186.9,5.44]
[1736559120668,7.12078259,187.02,186.96,7.12078259]
[1736559121973,8.71708259,187.02,186.96,7.12078259]
[1736559122270,7.12078259,187.0,186.94,7.12078259]
[1736559122467,7.12078259,186.98,186.92,7.12078259]
[1736559122974,2.6755,186.91,186.9,7.12078259]
[1736559123173,7.12078259,186.98,186.9,7.12078259]
[1736559123473,7.12078259,186.98,186.92,7.12078259]
[1736559124075,2.6752,186.93,186.92,7.12078259]
[1736559124666,5.358,187.04,186.92,7.12078259]
[1736559124667,19.90760875,187.07,186.92,12.56078259]
[1736559124872,19.90760875,187.07,187.03,7.12078259]
[1736559125068,19.90760875,187.07,186.93,3.1515]
[1736559125377,2.6734,187.05,187.03,7.12078259]
[1736559125779,2.6736,187.05,187.03,7.12078259]
[1736559127173,2.673,187.08,187.03,7.12078259]
[1736559127378,1.6183,187.11,187.02,11.11728754]
[1736559127780,2.6733,187.06,187.02,11.11728754]
[1736559129781,1.6183,187.11,187.02,11.11728754]
[1736559129979,1.5512,187.1,186.99,13.79158754]
[1736559131680,2.6737,187.04,186.99,13.79158754]
[1736559133585,2.6737,187.03,186.99,13.79158754]
[1736559135387,1.5512,187.1,186.99,11.11728754]
[1736559136384,2.6738,187.03,186.99,11.11728754]
[1736559137488,2.6739,187.02,186.99,11.11728754]
[1736559139491,1.5512,187.1,186.99,11.11728754]
[1736559139791,2.6736,187.04,187.01,2.674]
[1736559139991,2.6736,187.04,186.99,11.11728754]
[1736559140391,2.6736,187.04,187.0,2.6741]
[1736559145391,2.674,187.02,186.99,11.11728754]
[1736559147391,2.674,187.02,187.01,7.11753323]
[1736559157507,7.11753323,187.07,186.99,7.11753323]
[1736559157705,2.6742,187.0,186.99,7.11753323]
[1736559157907,7.11753323,187.05,186.94,1.6286]
[1736559158105,7.11753323,187.05,186.96,7.11753323]
[1736559158499,2.6745,186.98,186.96,7.11753323]
[1736559159501,2.6745,186.98,186.94,4.3036]
[1736559159803,2.6745,186.98,186.97,7.11753323]
[1736559161507,2.6746,186.97,186.94,4.3036]
[1736559162907,6.5090041,187.08,186.96,7.11753323]
[1736559163106,7.11753323,187.06,186.98,7.11753323]
[1736559164106,7.11753323,187.06,187.0,7.11753323]
[1736559164506,2.674,187.02,187.0,7.11753323]
[1736559165209,5.44,187.09,187.0,7.11753323]
[1736559165407,7.11753323,187.08,187.02,7.11753323]
[1736559167908,2.6738,187.03,187.0,7.11753323]
[1736559169503,2.6738,187.03,187.0,9.79163323]
[1736559170709,2.6738,187.03,187.0,7.11753323]
[1736559171507,2.6739,187.02,187.0,7.11753323]
[1736559178820,2.6737,187.04,187.0,9.79153323]
[1736559179012,8.07636213,187.1,187.02,7.11753323]
[1736559179211,8.07636213,187.1,187.04,7.11753323]
[1736559179413,6.52516213,187.1,187.04,7.11753323]
[1736559179609,165.68761542,187.11,187.04,7.11753323]
[1736559180119,1.6183,187.11,187.04,7.11753323]
[1736559180316,7.11753323,187.1,187.04,7.11753323]
[1736559180515,2.6734,187.05,187.04,7.11753323]
[1736559181119,2.6734,187.05,187.01,2.6739]
[1736559181315,2.6734,187.05,187.03,7.11753323]
[1736559182021,7.11753323,187.1,187.01,7.11753323]
[1736559182218,7.11753323,187.08,187.01,7.11753323]
[1736559183222,2.6739,187.02,187.01,7.11753323]
[1736559184925,2.674,187.01,186.99,7.11753323]
[1736559189725,2.6741,187.0,186.99,7.11753323]
[1736559191431,2.6744,186.99,186.97,7.11753323]
[1736559193430,1.5253,187.06,186.92,5.44]
[1736559193431,7.11753323,187.02,186.92,2.6753]
[1736559193636,7.11753323,187.02,186.95,7.11753323]
[1736559194832,2.6746,186.97,186.95,7.11753323]
[1736559196432,2.6747,186.96,186.95,7.11753323]
[1736559196934,7.11753323,187.02,186.95,7.11753323]
[1736559197133,7.11753323,187.02,186.97,7.11753323]
[1736559198135,2.6744,186.98,186.97,7.11753323]
[1736559198333,7.11753323,187.02,186.95,7.11753323]
[1736559199135,2.6747,186.96,186.95,7.11753323]
[1736559203834,2.6752,186.93,186.9,8.1155]
[1736559204046,7.11753323,187.0,186.92,7.11753323]
[1736559204237,7.11753323,187.02,186.96,7.11753323]
[1736559204543,7.11753323,187.04,186.96,7.11753323]
[1736559205438,2.6745,186.98,186.96,7.11753323]
[1736559207038,2.6746,186.97,186.96,7.11753323]
[1736559210443,2.6747,186.96,186.93,2.6751]
[1736559210643,2.6747,186.96,186.95,7.11753323]
[1736559212341,2.6747,186.96,186.93,2.6751]
[1736559212543,2.6747,186.96,186.95,7.11753323]
[1736559214449,2.6746,186.97,186.95,7.11753323]
[1736559214646,2.6746,186.97,186.96,7.11753323]
[1736559219650,2.6746,186.97,186.94,2.675]
[1736559219852,2.6746,186.97,186.96,7.11753323]
[1736559231852,2.6746,186.97,186.93,2.6751]
[1736559232053,2.6746,186.97,186.96,7.11753323]
[1736559240363,2.6748,186.96,186.93,2.6751]
[1736559240565,2.6748,186.96,186.95,7.11753323]
[1736559246276,2.6746,186.97,186.95,7.11753323]
[1736559246474,2.6746,186.97,186.96,7.11753323]
[1736559254470,2.6742,187.0,186.96,9.79213323]
[1736559254680,2.6742,187.0,186.99,7.11753323]
[1736559268096,2.6744,186.99,186.96,2.6747]
[1736559268296,2.6744,186.99,186.98,7.11753323]
[1736559268995,7.11753323,187.04,186.91,1.6228]
[1736559269300,7.11753323,187.04,186.97,7.11753323]
[1736559270098,2.6744,186.98,186.97,7.11753323]
[1736559290717,1.6241,187.05,186.97,7.11753323]
[1736559290913,1.6241,187.05,186.99,7.11753323]
[1736559291415,1.6241,187.05,186.99,9.79183323]
[1736559291916,2.6739,187.02,186.99,9.79183323]
[1736559292110,1.6241,187.05,186.99,7.11753323]
[1736559292710,2.6741,187.01,186.99,7.11753323]
[1736559294307,2.6741,187.0,186.99,7.11753323]
[1736559294617,8.74163323,187.05,186.98,7.11753323]
[1736559294814,8.74163323,187.05,186.91,7.0628]
[1736559295212,8.74163323,187.05,186.96,2.6747]
[1736559295515,8.74163323,187.05,186.97,7.11753323]
[1736559297119,2.6744,186.98,186.97,7.11753323]
[1736559297822,7.11753323,187.03,186.91,1.6228]
[1736559298023,7.11753323,187.01,186.89,5.44]
[1736559298221,3.2006,187.0,186.89,5.44]
[1736559298420,3.2006,187.0,186.93,7.11753323]
[1736559299122,2.675,186.95,186.9,2.6755]
[1736559299321,2.675,186.95,186.94,7.11753323]
[1736559299521,2.675,186.95,186.89,5.44]
[1736559299915,2.675,186.95,186.94,7.11753323]
[1736559303322,2.675,186.95,186.91,2.6754]
[1736559303522,2.675,186.94,186.93,7.11753323]
[1736559305229,2.6747,186.97,186.93,7.11753323]
[1736559305424,13.65906551,187.04,186.96,7.11753323]
[1736559305821,7.11753323,187.04,186.96,7.11753323]
[1736559306527,2.6745,186.98,186.96,7.11753323]
[1736559307223,2.6746,186.97,186.96,7.11753323]
[1736559310034,7.11753323,187.0,186.88,1.6363]
[1736559310223,7.11753323,186.98,186.88,1.6363]
[1736559310423,7.11753323,186.98,186.92,7.11753323]
[1736559311130,2.6752,186.93,186.92,7.11753323]
[1736559311328,3.0423,186.99,186.92,7.11753323]
[1736559311520,1.5202,186.99,186.94,7.11753323]
[1736559311725,8.08203228,187.04,186.98,7.11753323]
[1736559312031,1.5405,187.04,187.0,7.11753323]
[1736559313129,2.674,187.01,187.0,7.11753323]
[1736559313325,1.551,187.07,187.0,7.11753323]
[1736559313519,1.551,187.07,187.02,7.11753323]
[1736559313723,2.6737,187.03,187.02,7.11753323]
[1736559313923,7.11753323,187.06,186.96,4.7578]
[1736559314129,7.11753323,187.06,187.0,7.11753323]
[1736559314430,2.674,187.01,187.0,7.11753323]
[1736559315925,7.11753323,187.06,186.98,7.11753323]
[1736559316127,2.6744,186.99,186.98,7.11753323]
[1736559319629,2.6746,186.97,186.96,7.11753323]
[1736559325934,2.6745,186.98,186.96,7.11753323]
[1736559326128,2.6745,186.98,186.97,7.11753323]
[1736559327331,2.6736,187.04,186.97,9.79203323]
[1736559327632,1.551,187.07,187.01,7.11753323]
[1736559328437,2.6739,187.02,187.01,7.11753323]
[1736559330031,2.6741,187.0,186.99,7.11753323]
[1736559338139,7.11753323,187.04,186.9,5.44]
[1736559338440,3.277,187.03,186.95,7.11753323]
[1736559338644,2.6747,186.96,186.95,7.11753323]
[1736559350245,2.675,186.94,186.93,7.11753323]
[1736559350451,7.11753323,187.0,186.93,7.11753323]
[1736559350945,2.675,186.94,186.93,7.11753323]
[1736559352749,1.6169,187.01,186.93,7.11753323]
[1736559352951,2.6748,186.96,186.95,7.11753323]
[1736559353748,2.6747,186.97,186.95,7.11753323]
[1736559353959,2.6747,186.97,186.96,7.11753323]
[1736559362557,3.277,187.03,186.92,2.6753]
[1736559362758,2.675,186.95,186.92,2.6753]
[1736559362960,2.675,186.95,186.94,7.11753323]
[1736559363759,7.11753323,187.02,186.89,5.44]
[1736559363968,2.675,186.95,186.94,7.11753323]
[1736559364259,6.51948685,187.05,186.94,7.11753323]
[1736559364464,2.6742,187.0,186.99,7.11753323]
[1736559366868,8.66033323,187.06,186.89,5.44]
[1736559367068,8.66033323,187.06,186.97,7.11753323]
[1736559367270,8.66033323,187.06,186.89,5.44]
[1736559367568,2.6744,186.98,186.97,7.11753323]
[1736559368070,2.6749,186.95,186.92,2.6753]
[1736559368262,2.6749,186.95,186.94,7.11753323]
[1736559375775,2.6748,186.96,186.94,7.11753323]
[1736559378176,7.11753323,187.0,186.89,5.44]
[1736559378377,7.11753323,187.0,186.93,7.11753323]
[1736559378576,7.11753323,187.0,186.89,5.44]
[1736559378874,7.11753323,187.0,186.83,29.71312048]
[1736559378875,7.11753323,186.98,186.83,29.71312048]
[1736559379066,7.11753323,186.96,186.91,7.11753323]
[1736559379271,1.6417,187.0,186.91,7.11753323]
[1736559379468,1.6417,187.0,186.84,1.5642]
[1736559379469,8.75923323,187.0,186.93,7.11753323]
[1736559379682,3.2376,187.01,186.97,7.11753323]
[1736559380180,2.6744,186.98,186.97,7.11753323]
[1736559380375,3.2376,187.01,186.95,7.11753323]
[1736559380771,10.35513323,187.01,186.95,7.11753323]
[1736559381374,2.6747,186.96,186.95,7.11753323]
[1736559381879,2.6743,186.99,186.94,7.11753323]
[1736559382181,10.35513323,187.01,186.94,7.11753323]
[1736559383178,2.6749,186.95,186.94,7.11753323]
[1736559386683,2.6747,186.96,186.94,7.11753323]
[1736559389485,2.6749,186.95,186.94,7.11753323]
[1736559391279,10.35513323,187.01,186.9,5.44]
[1736559391486,2.6751,186.94,186.9,5.44]
[1736559391685,2.6751,186.94,186.93,7.11753323]
[1736559391884,6.50114231,187.05,186.93,7.11753323]
[1736559392085,7.11753323,187.02,186.95,7.11753323]
[1736559393186,2.6748,186.96,186.95,7.11753323]
[1736559409598,2.6749,186.95,186.9,4.6559]
[1736559409904,7.11753323,187.02,186.94,7.11753323]
[1736559410608,2.6749,186.95,186.94,7.11753323]
[1736559413511,2.6752,186.93,186.9,4.197]
[1736559413703,2.6752,186.93,186.92,7.11753323]
[1736559414202,2.6752,186.93,186.9,4.197]
[1736559414402,2.675,186.94,186.92,7.11753323]
[1736559414598,2.675,186.94,186.93,7.11753323]
[1736559420215,6.50114231,187.03,186.93,7.11753323]
[1736559420410,7.11753323,187.02,186.96,7.11753323]
[1736559421213,2.6746,186.97,186.96,7.11753323]
[1736559421508,7.11753323,187.02,186.95,7.11753323]
[1736559421709,2.6748,186.96,186.95,7.11753323]
[1736559424914,2.6751,186.93,186.9,1.5215]
[1736559425211,2.6751,186.93,186.92,7.11753323]
[1736559426310,7.11753323,186.94,186.82,29.71312048]
[1736559426518,7.11753323,186.92,186.86,7.11753323]
[1736559426711,1.6659,186.91,186.82,29.71312048]
[1736559427015,2.6761,186.86,186.85,7.11753323]
[1736559428014,2.6761,186.86,186.77,10.2393]
[1736559428215,2.6761,186.86,186.85,7.11753323]
[1736559428819,1.6659,186.91,186.85,7.11753323]
[1736559429012,1.6659,186.91,186.87,7.11753323]
[1736559429616,2.676,186.88,186.87,7.11753323]
[1736559431620,1.6659,186.91,186.79,5.5]
[1736559431823,1.6659,186.91,186.86,7.11753323]
[1736559433222,2.676,186.87,186.86,7.11753323]
[1736559434828,1.6659,186.91,186.84,7.11753323]
[1736559435027,2.6763,186.85,186.84,7.11753323]
[1736559440037,7.11753323,186.9,186.79,2.6771]
[1736559440226,2.6767,186.83,186.79,2.6771]
[1736559440425,7.11753323,186.83,186.71,2.6782]
[1736559440631,7.11753323,186.83,186.75,7.11753323]
[1736559440924,2.6776,186.76,186.75,7.11753323]
[1736559441128,2.6776,186.76,186.71,2.6783]
[1736559441329,7.11753323,186.81,186.7,5.48]
[1736559441529,7.11753323,186.81,186.75,7.11753323]
[1736559442226,7.11753323,186.81,186.69,4.7999]
[1736559442430,2.6781,186.73,186.69,7.4785]
[1736559442631,7.11753323,186.82,186.72,7.11753323]
[1736559442831,7.11753323,186.82,186.75,7.11753323]
[1736559443234,2.6777,186.76,186.75,7.11753323]
[1736559444236,2.6779,186.74,186.7,2.6784]
[1736559444534,2.6779,186.74,186.73,7.11753323]
[1736559445526,1.6545,186.84,186.73,7.11753323]
[1736559445731,7.11753323,186.8,186.73,7.11753323]
[1736559445930,2.6767,186.82,186.79,7.11753323]
[1736559446137,3.2353,186.86,186.81,7.11753323]
[1736559446437,3.2353,186.86,186.69,4.7999]
[1736559446633,3.2353,186.86,186.81,7.11753323]
[1736559447939,2.6767,186.82,186.81,7.11753323]
[1736559448139,10.35283323,186.86,186.76,1.6276]
[1736559448433,10.35283323,186.86,186.79,7.11753323]
[1736559448639,1.6616,186.85,186.79,7.11753323]
[1736559449039,2.677,186.8,186.79,7.11753323]
[1736559449233,7.11753323,186.84,186.77,7.11753323]
[1736559449739,2.6773,186.78,186.77,7.11753323]
[1736559450038,7.11753323,186.84,186.7,7.1076]
[1736559450338,2.6776,186.76,186.75,7.11753323]
[1736559450939,2.6774,186.78,186.75,7.11753323]
[1736559451235,2.6774,186.78,186.77,7.11753323]
[1736559451430,2.677,186.8,186.76,7.11753323]
[1736559451636,1.6616,186.85,186.76,7.11753323]
[1736559451835,7.11753323,186.84,186.76,7.11753323]
[1736559452036,2.6774,186.77,186.76,7.11753323]
[1736559455138,2.6779,186.74,186.7,9.786]
[1736559455443,2.6779,186.74,186.73,7.11753323]
[1736559459542,1.6616,186.85,186.73,7.11753323]
[1736559459742,7.11753323,186.84,186.77,7.11753323]
[1736559460143,2.6774,186.78,186.77,7.11753323]
[1736559460442,3.2353,186.86,186.77,7.11753323]
[1736559460639,2.6768,186.82,186.8,7.11753323]
[1736559460839,7.11753323,186.89,186.82,7.11753323]
[1736559461347,7.11753323,186.89,186.84,7.11753323]
[1736559462145,2.6764,186.85,186.84,7.11753323]
[1736559463047,2.6766,186.83,186.82,7.11753323]
[1736559463944,2.6766,186.83,186.79,2.6771]
[1736559464140,2.6766,186.83,186.82,7.11753323]
[1736559464939,7.11753323,186.87,186.8,7.11753323]
[1736559465144,2.677,186.81,186.8,7.11753323]
[1736559475061,2.6763,186.85,186.8,7.11753323]
[1736559475359,7.11753323,186.89,186.82,7.11753323]
[1736559475659,2.6758,186.89,186.82,7.11753323]
[1736559475863,7.11753323,186.89,186.82,7.11753323]
[1736559476058,3.2945,186.91,186.82,7.11753323]
[1736559476264,7.11753323,186.9,186.82,7.11753323]
[1736559476466,2.6764,186.85,186.82,7.11753323]
[1736559476659,7.11753323,186.9,186.84,7.11753323]
[1736559476964,2.6756,186.9,186.86,7.11753323]
[1736559477359,1.6622,186.92,186.86,7.11753323]
[1736559477662,2.6758,186.89,186.86,7.11753323]
[1736559478559,1.6622,186.92,186.86,7.11753323]
[1736559478560,2.6759,186.88,186.86,7.11753323]
[1736559480365,7.11753323,186.91,186.81,5.48]
[1736559480567,7.11753323,186.91,186.83,7.11753323]
[1736559481061,2.6764,186.84,186.83,7.11753323]
[1736559484463,2.6764,186.85,186.83,7.11753323]
[1736559484669,1.6172,186.91,186.84,7.11753323]
[1736559485065,2.6763,186.86,186.77,7.0684]
[1736559485266,2.6763,186.86,186.85,7.11753323]
[1736559486765,2.676,186.87,186.85,7.11753323]
[1736559487262,2.6761,186.86,186.85,7.11753323]
[1736559494072,6.84349231,186.95,186.85,7.11753323]
[1736559494270,13.96102554,186.95,186.88,7.11753323]
[1736559494668,2.6758,186.89,186.88,7.11753323]
[1736559496363,7.11753323,186.93,186.86,7.11753323]
[1736559497376,7.11753323,186.93,186.88,7.11753323]
[1736559498469,2.6758,186.89,186.88,7.11753323]
[1736559507172,7.11753323,186.93,186.86,7.11753323]
[1736559507378,2.6761,186.87,186.86,7.11753323]
[1736559509181,2.6759,186.88,186.86,7.11753323]
[1736559510684,12.47153323,186.94,186.86,9.79363323]
[1736559510988,12.47153323,186.94,186.88,7.11753323]
[1736559511384,2.6757,186.89,186.88,7.11753323]
[1736559515588,2.676,186.87,186.86,7.11753323]
[1736559518389,12.47153323,186.94,186.86,7.11753323]
[1736559519383,5.354,186.94,186.88,7.11753323]
[1736559519583,5.354,186.95,186.9,7.11753323]
[1736559519986,2.6754,186.91,186.9,7.11753323]
[1736559522285,2.6757,186.9,186.88,7.11753323]
[1736559522488,12.47153323,186.94,186.88,7.11753323]
[1736559522878,2.6757,186.89,186.88,7.11753323]
[1736559526090,2.6755,186.91,186.88,7.11753323]
[1736559526292,2.6755,186.91,186.9,7.11753323]
[1736559531898,5.354,186.94,186.88,7.11753323]
[1736559532198,2.6756,186.9,186.88,7.11753323]
[1736559533196,12.19749231,186.95,186.88,7.11753323]
[1736559533398,2.6757,186.89,186.88,7.11753323]
[1736559533895,2.6756,186.9,186.88,7.11753323]
[1736559534095,2.6756,186.9,186.89,7.11753323]
[1736559538900,2.6759,186.88,186.85,2.6762]
[1736559539100,2.6759,186.88,186.87,7.11753323]
[1736559543197,2.6759,186.88,186.85,2.6762]
[1736559543401,12.47153323,186.94,186.87,7.11753323]
[1736559545196,2.676,186.88,186.87,7.11753323]
[1736559545602,2.6761,186.87,186.83,5.8804]
[1736559545901,2.6761,186.87,186.85,7.11753323]
[1736559546104,7.11753323,186.92,186.82,2.6767]
[1736559546397,7.11753323,186.92,186.85,7.11753323]
[1736559547299,7.11753323,186.9,186.78,4.8942]
[1736559547503,7.11753323,186.88,186.82,7.11753323]
[1736559548301,2.6762,186.86,186.82,7.11753323]
[1736559548804,7.11753323,186.86,186.79,7.11753323]
[1736559549197,2.6769,186.81,186.78,7.11753323]
[1736559549393,7.11753323,186.84,186.78,7.11753323]
[1736559551202,7.11753323,186.84,186.75,2.6777]
[1736559551406,7.11753323,186.82,186.71,4.803]
[1736559551605,7.11753323,186.82,186.75,7.11753323]
[1736559551807,2.6774,186.78,186.75,7.11753323]
[1736559555312,7.11753323,186.82,186.71,4.803]
[1736559555513,7.11753323,186.82,186.75,7.11753323]
[1736559556311,2.6775,186.77,186.75,7.11753323]
[1736559557512,2.6775,186.77,186.73,2.678]
[1736559557711,2.6775,186.77,186.75,7.11753323]
[1736559558716,2.6773,186.78,186.75,7.11753323]
[1736559558910,7.11753323,186.82,186.75,7.11753323]
[1736559560021,2.6776,186.77,186.75,7.11753323]
[1736559561419,2.6776,186.77,186.74,7.11753323]
[1736559563324,2.6776,186.76,186.74,7.11753323]
[1736559567123,3.1099,186.81,186.74,7.11753323]
[1736559567422,7.11753323,186.78,186.67,5.44]
[1736559567624,7.11753323,186.78,186.71,7.11753323]
[1736559568226,2.678,186.74,186.71,7.11753323]
[1736559568728,7.11753323,186.78,186.71,7.11753323]
[1736559569021,2.678,186.73,186.71,7.11753323]
[1736559571224,7.11753323,186.78,186.71,7.11753323]
[1736559571423,2.6779,186.74,186.73,7.11753323]
[1736559573220,2.6777,186.76,186.73,9.79553323]
[1736559579130,8.75803323,186.8,186.73,9.79553323]
[1736559579329,2.6775,186.77,186.73,9.79553323]
[1736559580030,2.677,186.8,186.75,7.11753323]
[1736559580233,7.11753323,186.84,186.78,7.11753323]
[1736559581129,2.6769,186.81,186.78,7.11753323]
[1736559581328,3.187,186.86,186.8,7.11753323]
[1736559581521,10.30453323,186.86,186.8,7.11753323]
[1736559582036,1.6321,186.88,186.82,7.11753323]
[1736559582330,147.24451307,186.92,186.84,7.11753323]
[1736559582530,151.1874463,186.92,186.86,7.11753323]
[1736559582733,144.06991307,186.92,186.88,7.11753323]
[1736559582928,5.354,186.93,186.88,7.11753323]